[Event "Late-Titled-Tuesday-Blitz-September-12-2023"]
[Site "Chess.com"]
[Date "2023.09.12"]
[Round "9"]
[White "The_Princess_Moon"]
[Black "Cambek64"]
[Result "0-1"]
[WhiteElo "2292"]
[BlackElo "2489"]
[TimeControl "180+1"]
[EndTime "15:39:48 PDT"]
[Termination "Cambek64 won by resignation"]

1. e4 {[%clk 0:03:00.9]} 1... e6 {[%clk 0:02:59.8]} 2. d4 {[%clk 0:03:00.2]}
2... d5 {[%clk 0:03:00.3]} 3. e5 {[%clk 0:03:00.7]} 3... c5 {[%clk 0:02:58.7]}
4. c3 {[%clk 0:03:01.6]} 4... Nc6 {[%clk 0:02:58.5]} 5. Nf3 {[%clk 0:03:01.8]}
5... Bd7 {[%clk 0:02:58.7]} 6. Be2 {[%clk 0:03:01.5]} 6... Nge7 {[%clk 0:02:58]}
7. O-O {[%clk 0:02:59.9]} 7... cxd4 {[%clk 0:02:57.6]} 8. cxd4 {[%clk
0:02:59.4]} 8... Nf5 {[%clk 0:02:58.2]} 9. Nc3 {[%clk 0:02:59.2]} 9... Be7
{[%clk 0:02:56.6]} 10. g4 {[%clk 0:02:41.6]} 10... Nh4 {[%clk 0:02:54.6]} 11.
Nxh4 {[%clk 0:02:40.7]} 11... Bxh4 {[%clk 0:02:55.1]} 12. f4 {[%clk 0:02:41.6]}
12... Be7 {[%clk 0:02:54.6]} 13. Be3 {[%clk 0:02:27.2]} 13... Rc8 {[%clk
0:02:53]} 14. Qd2 {[%clk 0:02:21.8]} 14... O-O {[%clk 0:02:51.6]} 15. f5 {[%clk
0:02:20.7]} 15... Na5 {[%clk 0:02:50.8]} 16. f6 {[%clk 0:02:10.2]} 16... gxf6
{[%clk 0:02:49.4]} 17. Bh6 {[%clk 0:02:08.9]} 17... fxe5 {[%clk 0:02:45.2]} 18.
Bxf8 {[%clk 0:02:05.6]} 18... Bxf8 {[%clk 0:02:44.2]} 19. dxe5 {[%clk
0:02:03.2]} 19... Bg7 {[%clk 0:02:44.4]} 20. Qf4 {[%clk 0:02:02.1]} 20... Be8
{[%clk 0:02:42.8]} 21. Rae1 {[%clk 0:01:51]} 21... Nc4 {[%clk 0:02:40.8]} 22.
Bxc4 {[%clk 0:01:32]} 22... Rxc4 {[%clk 0:02:40.7]} 23. Qf3 {[%clk 0:01:25.7]}
23... Qg5 {[%clk 0:02:29]} 24. h3 {[%clk 0:01:20.4]} 24... h5 {[%clk 0:02:25.9]}
25. b3 {[%clk 0:01:17.5]} 25... hxg4 {[%clk 0:02:24.1]} 26. Qg3 {[%clk
0:01:12.5]} 26... Rd4 {[%clk 0:01:51.9]} 27. h4 {[%clk 0:01:09.8]} 27... Qg6
{[%clk 0:01:45]} 28. Ne2 {[%clk 0:01:07.8]} 28... Rd3 {[%clk 0:01:28.8]} 29. Qg2
{[%clk 0:01:06.8]} 29... Bxe5 {[%clk 0:01:26.4]} 30. Nf4 {[%clk 0:01:04.7]}
30... Bxf4 {[%clk 0:01:26.1]} 31. Rxf4 {[%clk 0:01:04.2]} 31... g3 {[%clk
0:01:15]} 32. Rf3 {[%clk 0:00:58]} 32... Rxf3 {[%clk 0:01:11]} 33. Qxf3 {[%clk
0:00:58.9]} 33... Bc6 {[%clk 0:01:03.1]} 34. h5 {[%clk 0:00:54.8]} 34... Qg5
{[%clk 0:00:56.1]} 35. Qe3 {[%clk 0:00:51.1]} 35... Qxh5 {[%clk 0:00:52.6]} 36.
Qxg3+ {[%clk 0:00:50.4]} 36... Kf8 {[%clk 0:00:47]} 37. Qd6+ {[%clk 0:00:47.6]}
37... Kg7 {[%clk 0:00:45.1]} 38. Qg3+ {[%clk 0:00:39.3]} 38... Qg6 {[%clk
0:00:44]} 39. Qxg6+ {[%clk 0:00:35.8]} 39... Kxg6 {[%clk 0:00:44.4]} 40. Kf2
{[%clk 0:00:36.1]} 40... f6 {[%clk 0:00:42.9]} 41. Ke3 {[%clk 0:00:36.6]} 41...
e5 {[%clk 0:00:43.2]} 42. Rg1+ {[%clk 0:00:32.5]} 42... Kf5 {[%clk 0:00:39.3]}
43. b4 {[%clk 0:00:28.5]} 43... d4+ {[%clk 0:00:36.7]} 44. Kd2 {[%clk
0:00:25.4]} 44... e4 {[%clk 0:00:35.7]} 45. Rb1 {[%clk 0:00:19]} 45... Bb5
{[%clk 0:00:34.7]} 46. Rc1 {[%clk 0:00:19.1]} 46... e3+ {[%clk 0:00:34.6]} 47.
Kd1 {[%clk 0:00:18.2]} 47... Ke4 {[%clk 0:00:34.4]} 48. Rc5 {[%clk 0:00:17.9]}
48... Bc6 {[%clk 0:00:34.1]} 49. b5 {[%clk 0:00:17]} 49... Bd5 {[%clk
0:00:34.6]} 50. a3 {[%clk 0:00:15.2]} 50... f5 {[%clk 0:00:34.9]} 51. a4 {[%clk
0:00:14.8]} 51... f4 {[%clk 0:00:35.2]} 52. Rc7 {[%clk 0:00:14.8]} 52... f3
{[%clk 0:00:34.6]} 53. Re7+ {[%clk 0:00:14.3]} 53... Kd3 {[%clk 0:00:32.3]} 54.
a5 {[%clk 0:00:13.8]} 54... f2 {[%clk 0:00:31.7]} 0-1

[Event "Late-Titled-Tuesday-Blitz-September-12-2023"]
[Site "Chess.com"]
[Date "2023.09.12"]
[Round "9"]
[White "zverr1"]
[Black "Alexei_Gubajdullin"]
[Result "1-0"]
[WhiteElo "2516"]
[BlackElo "2604"]
[TimeControl "180+1"]
[EndTime "15:39:51 PDT"]
[Termination "zverr1 won by checkmate"]

1. d4 {[%clk 0:03:00.9]} 1... Nf6 {[%clk 0:02:59.6]} 2. c4 {[%clk 0:03:00.7]}
2... g6 {[%clk 0:02:59.3]} 3. Nc3 {[%clk 0:03:01.3]} 3... Bg7 {[%clk 0:02:59.1]}
4. e4 {[%clk 0:03:01.9]} 4... d6 {[%clk 0:02:58.8]} 5. Be2 {[%clk 0:03:02.4]}
5... O-O {[%clk 0:02:56.4]} 6. h4 {[%clk 0:03:02]} 6... h5 {[%clk 0:02:53.3]} 7.
Nf3 {[%clk 0:02:58.1]} 7... c5 {[%clk 0:02:51.6]} 8. d5 {[%clk 0:02:55.4]} 8...
e6 {[%clk 0:02:50.6]} 9. Bg5 {[%clk 0:02:41.9]} 9... Qa5 {[%clk 0:02:44.7]} 10.
Qd2 {[%clk 0:02:34.3]} 10... exd5 {[%clk 0:02:43]} 11. exd5 {[%clk 0:02:31.7]}
11... Bf5 {[%clk 0:02:38.5]} 12. O-O {[%clk 0:02:28.1]} 12... a6 {[%clk
0:02:22.3]} 13. Bxf6 {[%clk 0:02:00.6]} 13... Bxf6 {[%clk 0:02:21.3]} 14. Ne4
{[%clk 0:02:01.2]} 14... Qd8 {[%clk 0:02:11.4]} 15. Nxf6+ {[%clk 0:02:01]} 15...
Qxf6 {[%clk 0:02:11.1]} 16. Qf4 {[%clk 0:02:00.7]} 16... Qxb2 {[%clk 0:01:45.5]}
17. Rfe1 {[%clk 0:01:59]} 17... Qf6 {[%clk 0:01:28.8]} 18. Bd3 {[%clk
0:01:55.8]} 18... Nd7 {[%clk 0:01:28.6]} 19. Bxf5 {[%clk 0:01:53.7]} 19... gxf5
{[%clk 0:01:28.5]} 20. Rab1 {[%clk 0:01:42.6]} 20... b6 {[%clk 0:01:27.3]} 21.
Re3 {[%clk 0:01:41.9]} 21... Rae8 {[%clk 0:01:26.2]} 22. Rbe1 {[%clk 0:01:42.3]}
22... Rxe3 {[%clk 0:01:22.6]} 23. Rxe3 {[%clk 0:01:43.2]} 23... b5 {[%clk
0:01:21.9]} 24. Ng5 {[%clk 0:01:27.6]} 24... Ne5 {[%clk 0:01:17.2]} 25. cxb5
{[%clk 0:01:25.5]} 25... axb5 {[%clk 0:01:17.2]} 26. Ne4 {[%clk 0:01:21]} 26...
Qg6 {[%clk 0:00:51.9]} 27. Rg3 {[%clk 0:01:07.6]} 27... Ng4 {[%clk 0:00:51.6]}
28. Nxd6 {[%clk 0:01:04.5]} 28... Rd8 {[%clk 0:00:50.8]} 29. Nxf5 {[%clk
0:01:02.1]} 29... Re8 {[%clk 0:00:48.9]} 30. Ne3 {[%clk 0:00:36.3]} 30... Qb1+
{[%clk 0:00:41.7]} 31. Nf1 {[%clk 0:00:32.9]} 31... Re1 {[%clk 0:00:35.4]} 32.
Qg5+ {[%clk 0:00:30]} 32... Kf8 {[%clk 0:00:30.5]} 33. Qd8+ {[%clk 0:00:29.3]}
33... Kg7 {[%clk 0:00:26.9]} 34. Qg5+ {[%clk 0:00:29.9]} 34... Kh7 {[%clk
0:00:19.9]} 35. Qxh5+ {[%clk 0:00:23.6]} 35... Nh6 {[%clk 0:00:19.7]} 36. Rf3
{[%clk 0:00:10.2]} 36... Rxf1+ {[%clk 0:00:19]} 37. Kh2 {[%clk 0:00:11.1]} 37...
Rh1+ {[%clk 0:00:18.2]} 38. Kg3 {[%clk 0:00:11.7]} 38... Qe4 {[%clk 0:00:13.8]}
39. Rxf7+ {[%clk 0:00:09.2]} 39... Kg8 {[%clk 0:00:12.6]} 40. Rf4 {[%clk
0:00:07.3]} 40... Qd3+ {[%clk 0:00:08.3]} 41. f3 {[%clk 0:00:06.2]} 41... Nf7
{[%clk 0:00:03.1]} 42. Qxf7+ {[%clk 0:00:06.1]} 42... Kh8 {[%clk 0:00:02.7]} 43.
Qf8+ {[%clk 0:00:06.5]} 43... Kh7 {[%clk 0:00:02.8]} 44. Rf7+ {[%clk 0:00:07.1]}
44... Kg6 {[%clk 0:00:02.8]} 45. Qg7+ {[%clk 0:00:07.7]} 45... Kh5 {[%clk
0:00:01.5]} 46. Qg5# {[%clk 0:00:08.3]} 1-0

[Event "Late-Titled-Tuesday-Blitz-September-12-2023"]
[Site "Chess.com"]
[Date "2023.09.12"]
[Round "9"]
[White "PapaieDudu"]
[Black "wild3000"]
[Result "1-0"]
[WhiteElo "2320"]
[BlackElo "2401"]
[TimeControl "180+1"]
[EndTime "15:39:54 PDT"]
[Termination "PapaieDudu won on time"]

1. e4 {[%clk 0:03:00.9]} 1... a6 {[%clk 0:01:49.1]} 2. d4 {[%clk 0:02:56.8]}
2... e6 {[%clk 0:01:49.1]} 3. Bd3 {[%clk 0:02:50.7]} 3... d5 {[%clk 0:01:47.7]}
4. e5 {[%clk 0:02:50.7]} 4... c5 {[%clk 0:01:47.6]} 5. c3 {[%clk 0:02:45.5]}
5... Nc6 {[%clk 0:01:47.4]} 6. f4 {[%clk 0:02:42.5]} 6... Nge7 {[%clk
0:01:46.5]} 7. Nf3 {[%clk 0:02:42.5]} 7... Bd7 {[%clk 0:01:45.6]} 8. dxc5 {[%clk
0:02:41]} 8... a5 {[%clk 0:01:36.9]} 9. Be3 {[%clk 0:02:38.7]} 9... Ng6 {[%clk
0:01:27.1]} 10. Nbd2 {[%clk 0:02:30.6]} 10... a4 {[%clk 0:01:26.7]} 11. b4
{[%clk 0:02:28.3]} 11... Qc7 {[%clk 0:01:15.5]} 12. Qe2 {[%clk 0:02:21.7]} 12...
Be7 {[%clk 0:01:11.1]} 13. Rc1 {[%clk 0:02:15.4]} 13... O-O {[%clk 0:01:09.6]}
14. h4 {[%clk 0:02:14.6]} 14... f6 {[%clk 0:00:44.2]} 15. b5 {[%clk 0:01:34.1]}
15... Ncxe5 {[%clk 0:00:33.4]} 16. fxe5 {[%clk 0:01:33.1]} 16... fxe5 {[%clk
0:00:28.1]} 17. Bxg6 {[%clk 0:01:33.6]} 17... hxg6 {[%clk 0:00:27.5]} 18. c4
{[%clk 0:01:28.8]} 18... e4 {[%clk 0:00:24.5]} 19. Ng5 {[%clk 0:01:15.7]} 19...
Qg3+ {[%clk 0:00:19.7]} 20. Bf2 {[%clk 0:01:15.2]} 20... Qxg2 {[%clk 0:00:19]}
21. Rg1 {[%clk 0:01:14.9]} 21... Rxf2 {[%clk 0:00:18.2]} 22. Qxf2 {[%clk
0:01:14]} 22... Qxf2+ {[%clk 0:00:18]} 23. Kxf2 {[%clk 0:01:14.4]} 23... Bxc5+
{[%clk 0:00:18.2]} 24. Ke2 {[%clk 0:01:13.2]} 24... Bxg1 {[%clk 0:00:17.1]} 25.
Rxg1 {[%clk 0:01:13.5]} 25... Rf8 {[%clk 0:00:15.7]} 26. Rb1 {[%clk 0:01:07.5]}
26... Rf4 {[%clk 0:00:14.6]} 27. Rh1 {[%clk 0:01:02.7]} 27... Kf8 {[%clk
0:00:13.6]} 28. Ke3 {[%clk 0:01:02.7]} 28... Rg4 {[%clk 0:00:11.9]} 29. Kd4
{[%clk 0:00:58.7]} 29... Ke7 {[%clk 0:00:11.3]} 30. Nf1 {[%clk 0:00:50.8]} 30...
e3+ {[%clk 0:00:09.8]} 31. Kxe3 {[%clk 0:00:50.3]} 31... Rxc4 {[%clk 0:00:10.4]}
32. Nd2 {[%clk 0:00:42.5]} 32... Rc2 {[%clk 0:00:09.4]} 33. Rf1 {[%clk
0:00:40.4]} 33... Bxb5 {[%clk 0:00:08.7]} 34. Rf7+ {[%clk 0:00:40.2]} 34... Kd6
{[%clk 0:00:08.9]} 35. Rxb7 {[%clk 0:00:31.6]} 35... Bc6 {[%clk 0:00:08.4]} 36.
Rxg7 {[%clk 0:00:31.6]} 36... e5 {[%clk 0:00:05.6]} 37. Rxg6+ {[%clk 0:00:31.7]}
37... Kc5 {[%clk 0:00:05.7]} 38. Ne6+ {[%clk 0:00:25]} 38... Kb5 {[%clk
0:00:03.2]} 39. Nc7+ {[%clk 0:00:20.9]} 39... Kc5 {[%clk 0:00:02.5]} 40. Rg2
{[%clk 0:00:13.1]} 40... d4+ {[%clk 0:00:02.3]} 41. Kd3 {[%clk 0:00:12.1]} 41...
Rc3+ {[%clk 0:00:02.3]} 42. Ke2 {[%clk 0:00:09.4]} 42... Bxg2 {[%clk 0:00:02.4]}
43. h5 {[%clk 0:00:06.7]} 43... Rh3 {[%clk 0:00:02.3]} 44. Ne6+ {[%clk
0:00:06.4]} 44... Kb4 {[%clk 0:00:01.1]} 45. Ng7 {[%clk 0:00:04.9]} 1-0

[Event "Late-Titled-Tuesday-Blitz-September-12-2023"]
[Site "Chess.com"]
[Date "2023.09.12"]
[Round "9"]
[White "MarcoRiehle"]
[Black "MathiasWomacka"]
[Result "1/2-1/2"]
[WhiteElo "2774"]
[BlackElo "2547"]
[TimeControl "180+1"]
[EndTime "15:40:04 PDT"]
[Termination "Game drawn - insufficient material"]

1. e4 {[%clk 0:02:59.5]} 1... c5 {[%clk 0:02:59.6]} 2. a3 {[%clk 0:02:59.6]}
2... g6 {[%clk 0:02:58.5]} 3. h4 {[%clk 0:02:58]} 3... Bg7 {[%clk 0:02:53]} 4.
h5 {[%clk 0:02:57.6]} 4... Nc6 {[%clk 0:02:51.5]} 5. Nc3 {[%clk 0:02:55.9]} 5...
e6 {[%clk 0:02:45]} 6. Bc4 {[%clk 0:02:54.9]} 6... Nge7 {[%clk 0:02:39.8]} 7. d3
{[%clk 0:02:53.8]} 7... d5 {[%clk 0:02:39.1]} 8. Ba2 {[%clk 0:02:52.7]} 8... b6
{[%clk 0:02:12.2]} 9. Nf3 {[%clk 0:02:49.2]} 9... Bb7 {[%clk 0:02:12]} 10. Bg5
{[%clk 0:02:45.4]} 10... Qd7 {[%clk 0:02:11.5]} 11. Qe2 {[%clk 0:02:39]} 11...
O-O-O {[%clk 0:02:10.8]} 12. O-O-O {[%clk 0:02:31.6]} 12... h6 {[%clk
0:02:04.9]} 13. Bxe7 {[%clk 0:02:30.9]} 13... Nxe7 {[%clk 0:02:05.3]} 14. hxg6
{[%clk 0:02:30.4]} 14... Nxg6 {[%clk 0:02:01.4]} 15. exd5 {[%clk 0:02:26.7]}
15... exd5 {[%clk 0:01:58.9]} 16. Qd2 {[%clk 0:02:21.7]} 16... h5 {[%clk
0:01:42.6]} 17. Kb1 {[%clk 0:02:16.4]} 17... h4 {[%clk 0:01:42.4]} 18. Rde1
{[%clk 0:01:52]} 18... Qg4 {[%clk 0:01:33.5]} 19. Qg5 {[%clk 0:01:50.4]} 19...
Qxg5 {[%clk 0:01:26.5]} 20. Nxg5 {[%clk 0:01:51.1]} 20... Rd7 {[%clk 0:01:25.8]}
21. Bb3 {[%clk 0:01:31.6]} 21... Nf4 {[%clk 0:01:15]} 22. Rh2 {[%clk 0:01:28.6]}
22... Bd4 {[%clk 0:01:10]} 23. Nd1 {[%clk 0:01:21.8]} 23... Rg8 {[%clk
0:01:08.5]} 24. Nf3 {[%clk 0:01:18.4]} 24... Bf6 {[%clk 0:01:02.5]} 25. Nxh4
{[%clk 0:01:14.5]} 25... Bxh4 {[%clk 0:00:54.2]} 26. Rxh4 {[%clk 0:01:15.2]}
26... Nxg2 {[%clk 0:00:53.9]} 27. Rg1 {[%clk 0:01:15.5]} 27... Nxh4 {[%clk
0:00:53.7]} 28. Rxg8+ {[%clk 0:01:16.2]} 28... Kc7 {[%clk 0:00:53.7]} 29. Ne3
{[%clk 0:01:13.5]} 29... Bc6 {[%clk 0:00:46.1]} 30. Rg5 {[%clk 0:01:08.1]} 30...
d4 {[%clk 0:00:42.2]} 31. Ng4 {[%clk 0:01:03.6]} 31... Nf3 {[%clk 0:00:40.8]}
32. Rf5 {[%clk 0:01:02.2]} 32... Nd2+ {[%clk 0:00:40]} 33. Kc1 {[%clk 0:01:00]}
33... Nxb3+ {[%clk 0:00:39.7]} 34. cxb3 {[%clk 0:01:00.6]} 34... Kd6 {[%clk
0:00:39.6]} 35. Rf6+ {[%clk 0:00:59.4]} 35... Kd5 {[%clk 0:00:37.2]} 36. Kd2
{[%clk 0:00:52.1]} 36... Re7 {[%clk 0:00:37]} 37. Rf5+ {[%clk 0:00:44.3]} 37...
Kd6 {[%clk 0:00:36.4]} 38. Rf6+ {[%clk 0:00:44.6]} 38... Kd5 {[%clk 0:00:36.7]}
39. Rf5+ {[%clk 0:00:44.2]} 39... Kd6 {[%clk 0:00:36.8]} 40. f4 {[%clk
0:00:44.5]} 40... Bd7 {[%clk 0:00:35.9]} 41. Rf6+ {[%clk 0:00:44]} 41... Kc7
{[%clk 0:00:35.6]} 42. Ne5 {[%clk 0:00:43.6]} 42... Be6 {[%clk 0:00:35.7]} 43.
b4 {[%clk 0:00:43.3]} 43... cxb4 {[%clk 0:00:34.5]} 44. axb4 {[%clk 0:00:44]}
44... Kd6 {[%clk 0:00:32.7]} 45. Ke2 {[%clk 0:00:38.3]} 45... Rc7 {[%clk
0:00:28.9]} 46. Nc4+ {[%clk 0:00:36.7]} 46... Ke7 {[%clk 0:00:28.5]} 47. Rh6
{[%clk 0:00:35.3]} 47... Bxc4 {[%clk 0:00:28.6]} 48. dxc4 {[%clk 0:00:35.6]}
48... Rxc4 {[%clk 0:00:29.2]} 49. b5 {[%clk 0:00:34.4]} 49... Rb4 {[%clk
0:00:29]} 50. Kd3 {[%clk 0:00:34.5]} 50... Rxb5 {[%clk 0:00:28.5]} 51. Rh2
{[%clk 0:00:33.8]} 51... Rb4 {[%clk 0:00:28]} 52. Ke4 {[%clk 0:00:34.1]} 52...
a5 {[%clk 0:00:27]} 53. f5 {[%clk 0:00:32.3]} 53... Kf6 {[%clk 0:00:26.3]} 54.
Rh6+ {[%clk 0:00:32]} 54... Kg5 {[%clk 0:00:26.3]} 55. Rd6 {[%clk 0:00:31.6]}
55... a4 {[%clk 0:00:25.1]} 56. Rd7 {[%clk 0:00:31.6]} 56... Kf6 {[%clk
0:00:23.6]} 57. Rd6+ {[%clk 0:00:31.5]} 57... Ke7 {[%clk 0:00:23.6]} 58. Rc6
{[%clk 0:00:31.4]} 58... b5 {[%clk 0:00:22.2]} 59. Rc7+ {[%clk 0:00:31.1]} 59...
Kd6 {[%clk 0:00:21.6]} 60. Rxf7 {[%clk 0:00:30]} 60... Rxb2 {[%clk 0:00:22.1]}
61. Kxd4 {[%clk 0:00:27]} 61... a3 {[%clk 0:00:22.3]} 62. Ra7 {[%clk 0:00:26]}
62... b4 {[%clk 0:00:21.3]} 63. f6 {[%clk 0:00:26.3]} 63... Rf2 {[%clk 0:00:21]}
64. Kc4 {[%clk 0:00:22]} 64... Rf4+ {[%clk 0:00:18.8]} 65. Kb3 {[%clk 0:00:22]}
65... Ke6 {[%clk 0:00:17.7]} 66. f7 {[%clk 0:00:21.4]} 66... Rxf7 {[%clk
0:00:17.7]} 67. Ra6+ {[%clk 0:00:21.7]} 67... Kd5 {[%clk 0:00:17.6]} 68. Kxb4
{[%clk 0:00:22.1]} 68... Rf3 {[%clk 0:00:17.6]} 69. Rxa3 {[%clk 0:00:21.5]}
69... Rxa3 {[%clk 0:00:17.6]} 70. Kxa3 {[%clk 0:00:21.7]} 1/2-1/2

[Event "Late-Titled-Tuesday-Blitz-September-12-2023"]
[Site "Chess.com"]
[Date "2023.09.12"]
[Round "9"]
[White "RaphaeI"]
[Black "szachmistrz2500"]
[Result "0-1"]
[WhiteElo "2572"]
[BlackElo "2469"]
[TimeControl "180+1"]
[EndTime "15:40:07 PDT"]
[Termination "szachmistrz2500 won on time"]

1. c4 {[%clk 0:03:00.9]} 1... c5 {[%clk 0:02:59.1]} 2. Nf3 {[%clk 0:03:00.2]}
2... g6 {[%clk 0:02:58.5]} 3. e4 {[%clk 0:02:59.3]} 3... Bg7 {[%clk 0:02:57.8]}
4. d4 {[%clk 0:03:00]} 4... cxd4 {[%clk 0:02:56.4]} 5. Nxd4 {[%clk 0:03:00.9]}
5... Nc6 {[%clk 0:02:55.9]} 6. Be3 {[%clk 0:03:01.1]} 6... Nf6 {[%clk
0:02:55.6]} 7. Nc3 {[%clk 0:03:00.9]} 7... d6 {[%clk 0:02:55.7]} 8. Be2 {[%clk
0:03:01]} 8... O-O {[%clk 0:02:52.9]} 9. O-O {[%clk 0:03:01.1]} 9... Nxd4 {[%clk
0:02:52.5]} 10. Bxd4 {[%clk 0:03:01]} 10... Be6 {[%clk 0:02:52.7]} 11. b3 {[%clk
0:02:51.5]} 11... Nd7 {[%clk 0:02:49.2]} 12. Bxg7 {[%clk 0:02:45.6]} 12... Kxg7
{[%clk 0:02:49.3]} 13. f4 {[%clk 0:02:39.2]} 13... f6 {[%clk 0:02:49.3]} 14. Nd5
{[%clk 0:02:27.4]} 14... Nb6 {[%clk 0:02:45.4]} 15. Qd2 {[%clk 0:02:21]} 15...
Nxd5 {[%clk 0:02:39.5]} 16. exd5 {[%clk 0:02:19.8]} 16... Bf7 {[%clk 0:02:39.3]}
17. Rae1 {[%clk 0:02:04]} 17... Qb6+ {[%clk 0:02:38.5]} 18. Kh1 {[%clk
0:02:04.2]} 18... a5 {[%clk 0:02:38.7]} 19. Bg4 {[%clk 0:02:00.9]} 19... Rfe8
{[%clk 0:02:38.4]} 20. Bd7 {[%clk 0:02:00.4]} 20... Red8 {[%clk 0:02:32.2]} 21.
Rxe7 {[%clk 0:01:22.4]} 21... Qc7 {[%clk 0:02:31.5]} 22. Rxf7+ {[%clk
0:01:09.5]} 22... Kxf7 {[%clk 0:02:30.8]} 23. Be6+ {[%clk 0:01:09.9]} 23... Kg7
{[%clk 0:02:30]} 24. f5 {[%clk 0:01:10.8]} 24... g5 {[%clk 0:02:26.4]} 25. h4
{[%clk 0:01:07.9]} 25... h6 {[%clk 0:02:22.1]} 26. Qd4 {[%clk 0:00:57]} 26...
Rh8 {[%clk 0:02:06.8]} 27. Rf3 {[%clk 0:00:55.8]} 27... Qe7 {[%clk 0:01:56.3]}
28. Kg1 {[%clk 0:00:51.7]} 28... Kh7 {[%clk 0:01:46.6]} 29. Rh3 {[%clk
0:00:50.2]} 29... Kg7 {[%clk 0:01:43.9]} 30. Rg3 {[%clk 0:00:49.8]} 30... Kh7
{[%clk 0:01:42.1]} 31. Qe4 {[%clk 0:00:30]} 31... Kg7 {[%clk 0:01:32.2]} 32. Qd4
{[%clk 0:00:28.5]} 32... Kh7 {[%clk 0:01:31.9]} 33. Qg4 {[%clk 0:00:29.1]} 33...
Kg7 {[%clk 0:01:29.2]} 34. a3 {[%clk 0:00:24.9]} 34... Ra6 {[%clk 0:01:20.5]}
35. Qd4 {[%clk 0:00:24.3]} 35... Kh7 {[%clk 0:01:17.5]} 36. Kf2 {[%clk
0:00:23.1]} 36... Raa8 {[%clk 0:01:16.1]} 37. Ke2 {[%clk 0:00:20.8]} 37... Rhf8
{[%clk 0:01:08.6]} 38. Rh3 {[%clk 0:00:18.5]} 38... Kg7 {[%clk 0:01:07.3]} 39.
Kd2 {[%clk 0:00:18.6]} 39... Rh8 {[%clk 0:01:00]} 40. Rg3 {[%clk 0:00:18.3]}
40... Kh7 {[%clk 0:00:59.7]} 41. Kc3 {[%clk 0:00:18.6]} 41... Rhf8 {[%clk
0:00:54.9]} 42. Rh3 {[%clk 0:00:17.3]} 42... Kg7 {[%clk 0:00:54.9]} 43. Rg3
{[%clk 0:00:17.1]} 43... Kh7 {[%clk 0:00:54.9]} 44. Qe4 {[%clk 0:00:16.7]} 44...
Kg7 {[%clk 0:00:53]} 45. Qe2 {[%clk 0:00:16.3]} 45... b5 {[%clk 0:00:44.8]} 46.
cxb5 {[%clk 0:00:14.2]} 46... Rfc8+ {[%clk 0:00:44.1]} 47. Kb2 {[%clk
0:00:12.8]} 47... Rc5 {[%clk 0:00:43.2]} 48. hxg5 {[%clk 0:00:11.2]} 48... hxg5
{[%clk 0:00:43]} 49. Rh3 {[%clk 0:00:11.8]} 49... Rac8 {[%clk 0:00:37.2]} 50. a4
{[%clk 0:00:06.8]} 50... Rc2+ {[%clk 0:00:33.9]} 51. Qxc2 {[%clk 0:00:06.3]}
51... Rxc2+ {[%clk 0:00:34.7]} 52. Kxc2 {[%clk 0:00:07.2]} 52... Qa7 {[%clk
0:00:34.1]} 53. Rc3 {[%clk 0:00:03.9]} 53... Qf2+ {[%clk 0:00:33.4]} 54. Kb1
{[%clk 0:00:04.2]} 54... Qg1+ {[%clk 0:00:27.5]} 55. Kb2 {[%clk 0:00:03.5]}
55... Qxg2+ {[%clk 0:00:26.9]} 56. Rc2 {[%clk 0:00:04.2]} 56... Qg1 {[%clk
0:00:24.7]} 57. Rc7+ {[%clk 0:00:02.6]} 57... Kh6 {[%clk 0:00:23.5]} 58. Rc6
{[%clk 0:00:02.2]} 58... Qd4+ {[%clk 0:00:22.3]} 59. Ka3 {[%clk 0:00:01.9]}
59... Qb4+ {[%clk 0:00:22]} 60. Kb2 {[%clk 0:00:01.9]} 60... g4 {[%clk
0:00:22.8]} 0-1